[Event "Titled Tuesday Blitz April 25 Late 2023"]
[White "Roebers, Eline"]
[Black "Leitao, Rafael"]
[WhiteFideId "1058401"]
[BlackFideId "2101246"]
[WhiteElo "2356"]
[BlackElo "2609"]
[Result "0-1"]
[Round "09"]
[TimeControl "180+2"]
[Date "2023.04.25"]
[WhiteClock "0:00:06"]
[BlackClock "0:00:13"]

1. e4 {[%clk 0:03:00]}  e5 {[%clk 0:02:58]} 2. Nf3 {[%clk 0:03:00]}  Nc6 {[%clk 0:02:58]} 3. Nc3 {[%clk 0:03:01]}  Nf6 {[%clk 0:02:57]} 4. a3 {[%clk 0:03:01]}  d6 {[%clk 0:02:49]} 5. d4 {[%clk 0:03:01]}  exd4 {[%clk 0:02:49]} 6. Nxd4 {[%clk 0:03:02]}  Be7 {[%clk 0:02:49]} 7. Be2 {[%clk 0:02:52]}  O-O {[%clk 0:02:48]} 8. O-O {[%clk 0:02:52]}  Nxd4 {[%clk 0:02:47]} 9. Qxd4 {[%clk 0:02:51]}  Re8 {[%clk 0:02:45]} 10. f4 {[%clk 0:02:51]}  c6 {[%clk 0:02:42]} 11. Kh1 {[%clk 0:02:43]}  Nd7 {[%clk 0:02:30]} 12. Bf3 {[%clk 0:02:32]}  Nc5 {[%clk 0:02:27]} 13. Rd1 {[%clk 0:02:17]}  Qc7 {[%clk 0:02:06]} 14. Be3 {[%clk 0:02:05]}  b6 {[%clk 0:02:02]} 15. e5 {[%clk 0:01:26]}  d5 {[%clk 0:01:35]} 16. Qd2 {[%clk 0:01:16]}  Bf5 {[%clk 0:01:16]} 17. Ne2 {[%clk 0:01:16]}  Ne4 {[%clk 0:01:14]} 18. Qe1 {[%clk 0:01:15]}  Bg6 {[%clk 0:01:10]} 19. Nd4 {[%clk 0:01:13]}  c5 {[%clk 0:00:59]} 20. Ne2 {[%clk 0:01:11]}  Rad8 {[%clk 0:00:56]} 21. c3 {[%clk 0:00:55]}  f6 {[%clk 0:00:55]} 22. exf6 {[%clk 0:00:46]}  Bxf6 {[%clk 0:00:55]} 23. Qg1 {[%clk 0:00:43]}  Kh8 {[%clk 0:00:53]} 24. Re1 {[%clk 0:00:39]}  Re7 {[%clk 0:00:49]} 25. Rad1 {[%clk 0:00:39]}  Red7 {[%clk 0:00:46]} 26. Nc1 {[%clk 0:00:37]}  d4 {[%clk 0:00:44]} 27. Bxd4 {[%clk 0:00:18]}  cxd4 {[%clk 0:00:39]} 28. Bxe4 {[%clk 0:00:18]}  dxc3 {[%clk 0:00:32]} 29. Rxd7 {[%clk 0:00:17]}  Qxd7 {[%clk 0:00:29]} 30. bxc3 {[%clk 0:00:17]}  Bxc3 {[%clk 0:00:28]} 31. Re2 {[%clk 0:00:15]}  Bh5 {[%clk 0:00:18]} 32. Rc2 {[%clk 0:00:14]}  Bd4 {[%clk 0:00:18]} 33. Qf1 {[%clk 0:00:13]}  Bc5 {[%clk 0:00:18]} 34. Bf3 {[%clk 0:00:12]}  Bg6 {[%clk 0:00:18]} 35. Re2 {[%clk 0:00:11]}  Qc7 {[%clk 0:00:18]} 36. Qe1 {[%clk 0:00:11]}  Qxf4 {[%clk 0:00:18]} 37. Nb3 {[%clk 0:00:09]}  Bxa3 {[%clk 0:00:15]} 38. Nd2 {[%clk 0:00:08]}  Bb4 {[%clk 0:00:14]} 39. Re4 {[%clk 0:00:06]}  Bxe4 {[%clk 0:00:13]} 0-1


[Site "https://www.chess.com"]

[Event "Titled Tuesday Blitz April 25 Late 2023"]
[White "Sieciechowicz, Marcin"]
[Black "Shapiro, Viktor"]
[WhiteFideId "1130170"]
[BlackFideId "4175700"]
[WhiteElo "2302"]
[BlackElo "2152"]
[Result "1-0"]
[Round "09"]
[TimeControl "180+2"]
[Date "2023.04.25"]
[WhiteClock "0:00:39"]
[BlackClock "0:00:01"]

1. d4 {[%clk 0:03:00]}  Nf6 {[%clk 0:02:58]} 2. Bf4 {[%clk 0:03:01]}  c5 {[%clk 0:02:56]} 3. e3 {[%clk 0:03:00]}  e6 {[%clk 0:02:56]} 4. c3 {[%clk 0:02:58]}  Qb6 {[%clk 0:02:54]} 5. Qb3 {[%clk 0:02:58]}  Nc6 {[%clk 0:02:51]} 6. Nd2 {[%clk 0:02:56]}  d5 {[%clk 0:02:51]} 7. Ngf3 {[%clk 0:02:54]}  c4 {[%clk 0:02:50]} 8. Qc2 {[%clk 0:02:54]}  Bd7 {[%clk 0:02:49]} 9. e4 {[%clk 0:02:51]}  Be7 {[%clk 0:02:40]} 10. Be2 {[%clk 0:02:44]}  Rc8 {[%clk 0:02:30]} 11. e5 {[%clk 0:02:39]}  Nh5 {[%clk 0:02:28]} 12. Be3 {[%clk 0:02:39]}  g6 {[%clk 0:02:28]} 13. g4 {[%clk 0:02:32]}  Ng7 {[%clk 0:02:28]} 14. Bh6 {[%clk 0:02:33]}  Bf8 {[%clk 0:02:06]} 15. h4 {[%clk 0:02:32]}  Qd8 {[%clk 0:02:05]} 16. Nf1 {[%clk 0:02:23]}  f6 {[%clk 0:01:59]} 17. Qd2 {[%clk 0:02:15]}  fxe5 {[%clk 0:01:58]} 18. dxe5 {[%clk 0:02:16]}  Qe7 {[%clk 0:01:43]} 19. Ng3 {[%clk 0:02:10]}  b5 {[%clk 0:01:30]} 20. Bg5 {[%clk 0:02:09]}  Qc5 {[%clk 0:01:29]} 21. Bf6 {[%clk 0:02:08]}  b4 {[%clk 0:01:22]} 22. h5 {[%clk 0:02:08]}  bxc3 {[%clk 0:01:15]} 23. bxc3 {[%clk 0:02:07]}  gxh5 {[%clk 0:00:50]} 24. Nxh5 {[%clk 0:02:01]}  Rg8 {[%clk 0:00:46]} 25. Qh6 {[%clk 0:01:40]}  Qa3 {[%clk 0:00:30]} 26. Kf1 {[%clk 0:01:19]}  Qxc3 {[%clk 0:00:24]} 27. Re1 {[%clk 0:01:19]}  Nxh5 {[%clk 0:00:20]} 28. Qxh5+ {[%clk 0:01:19]}  Rg6 {[%clk 0:00:20]} 29. Nh4 {[%clk 0:01:02]}  Bb4 {[%clk 0:00:18]} 30. Rd1 {[%clk 0:00:57]}  Qc2 {[%clk 0:00:11]} 31. Qxh7 {[%clk 0:00:53]}  Ne7 {[%clk 0:00:01]} 32. Bxe7 {[%clk 0:00:39]} 1-0


[Site "https://www.chess.com"]

[Event "Titled Tuesday Blitz April 25 Late 2023"]
[White "Gritsenko, Nikolai"]
[Black "Silva, Miguel Antonio Neto"]
[WhiteFideId "14112493"]
[BlackFideId "1911929"]
[WhiteElo "2389"]
[BlackElo "2223"]
[Result "1-0"]
[Round "09"]
[TimeControl "180+2"]
[Date "2023.04.25"]
[WhiteClock "0:00:16"]
[BlackClock "0:00:19"]

1. d4 {[%clk 0:03:00]}  d5 {[%clk 0:02:56]} 2. Bg5 {[%clk 0:02:59]}  c6 {[%clk 0:02:53]} 3. e3 {[%clk 0:02:58]}  Qb6 {[%clk 0:02:52]} 4. Qc1 {[%clk 0:02:59]}  Bf5 {[%clk 0:02:51]} 5. Nf3 {[%clk 0:02:51]}  Nd7 {[%clk 0:02:48]} 6. c4 {[%clk 0:02:49]}  e6 {[%clk 0:02:47]} 7. Nc3 {[%clk 0:02:48]}  Ngf6 {[%clk 0:02:45]} 8. c5 {[%clk 0:02:45]}  Qd8 {[%clk 0:02:33]} 9. h3 {[%clk 0:02:38]}  Be7 {[%clk 0:02:31]} 10. Be2 {[%clk 0:02:37]}  Ne4 {[%clk 0:02:30]} 11. Bxe7 {[%clk 0:02:35]}  Qxe7 {[%clk 0:02:31]} 12. O-O {[%clk 0:02:33]}  O-O {[%clk 0:02:27]} 13. b4 {[%clk 0:02:31]}  e5 {[%clk 0:02:26]} 14. Re1 {[%clk 0:02:17]}  a6 {[%clk 0:02:25]} 15. a4 {[%clk 0:02:15]}  Bg6 {[%clk 0:02:20]} 16. b5 {[%clk 0:02:11]}  axb5 {[%clk 0:02:18]} 17. axb5 {[%clk 0:02:08]}  exd4 {[%clk 0:02:06]} 18. exd4 {[%clk 0:02:01]}  Rxa1 {[%clk 0:02:01]} 19. Qxa1 {[%clk 0:01:59]}  Nxc3 {[%clk 0:01:59]} 20. Qxc3 {[%clk 0:01:59]}  Ra8 {[%clk 0:01:53]} 21. bxc6 {[%clk 0:01:33]}  bxc6 {[%clk 0:01:52]} 22. Ba6 {[%clk 0:01:17]}  Qf6 {[%clk 0:01:39]} 23. Bb7 {[%clk 0:01:15]}  Rb8 {[%clk 0:01:38]} 24. Qa5 {[%clk 0:01:07]}  Rxb7 {[%clk 0:00:38]} 25. Re8+ {[%clk 0:00:49]}  Nf8 {[%clk 0:00:33]} 26. Rxf8+ {[%clk 0:00:49]}  Kxf8 {[%clk 0:00:33]} 27. Qa8+ {[%clk 0:00:49]}  Ke7 {[%clk 0:00:30]} 28. Qxb7+ {[%clk 0:00:48]}  Ke8 {[%clk 0:00:27]} 29. Ne5 {[%clk 0:00:40]}  Bf5 {[%clk 0:00:25]} 30. Qxc6+ {[%clk 0:00:33]}  Qxc6 {[%clk 0:00:24]} 31. Nxc6 {[%clk 0:00:33]}  f6 {[%clk 0:00:24]} 32. Nb4 {[%clk 0:00:32]}  Be6 {[%clk 0:00:23]} 33. f4 {[%clk 0:00:30]}  Kd7 {[%clk 0:00:22]} 34. Kf2 {[%clk 0:00:25]}  g5 {[%clk 0:00:23]} 35. Kf3 {[%clk 0:00:23]}  h5 {[%clk 0:00:22]} 36. g4 {[%clk 0:00:22]}  hxg4+ {[%clk 0:00:19]} 37. hxg4 {[%clk 0:00:22]}  Kc7 {[%clk 0:00:17]} 38. Kg3 {[%clk 0:00:18]}  Bf7 {[%clk 0:00:17]} 39. Kf3 {[%clk 0:00:15]}  Kb7 {[%clk 0:00:17]} 40. f5 {[%clk 0:00:15]}  Kc7 {[%clk 0:00:18]} 41. Ke3 {[%clk 0:00:16]}  Bg8 {[%clk 0:00:18]} 42. Kd3 {[%clk 0:00:16]}  Bf7 {[%clk 0:00:19]} 43. Kc3 {[%clk 0:00:16]}  Kb7 {[%clk 0:00:19]} 44. Kb3 {[%clk 0:00:16]}  Kc7 {[%clk 0:00:19]} 45. Ka4 {[%clk 0:00:17]}  Be8+ {[%clk 0:00:19]} 46. Ka5 {[%clk 0:00:17]}  Bf7 {[%clk 0:00:19]} 47. Kb5 {[%clk 0:00:16]}  Be8+ {[%clk 0:00:19]} 48. c6 {[%clk 0:00:16]}  Kd6 {[%clk 0:00:19]} 49. Kb6 {[%clk 0:00:16]} 1-0


[Site "https://www.chess.com"]

[Event "Titled Tuesday Blitz April 25 Late 2023"]
[White "Pesotskiy, Mikhail"]
[Black "Bronstein, Or"]
[WhiteFideId "34164453"]
[BlackFideId "2815770"]
[WhiteElo "2131"]
[BlackElo "2356"]
[Result "1/2-1/2"]
[Round "09"]
[TimeControl "180+2"]
[Date "2023.04.25"]
[WhiteClock "0:00:08"]
[BlackClock "0:00:18"]

1. d4 {[%clk 0:03:00]}  Nf6 {[%clk 0:02:58]} 2. c4 {[%clk 0:03:00]}  g6 {[%clk 0:02:58]} 3. Nc3 {[%clk 0:03:00]}  Bg7 {[%clk 0:02:59]} 4. e4 {[%clk 0:03:01]}  d6 {[%clk 0:02:59]} 5. f3 {[%clk 0:03:01]}  O-O {[%clk 0:03:00]} 6. Be3 {[%clk 0:03:02]}  Nbd7 {[%clk 0:02:59]} 7. Bd3 {[%clk 0:03:02]}  c5 {[%clk 0:02:58]} 8. Nge2 {[%clk 0:03:02]}  cxd4 {[%clk 0:02:53]} 9. Nxd4 {[%clk 0:03:03]}  Nc5 {[%clk 0:02:50]} 10. Be2 {[%clk 0:02:59]}  a6 {[%clk 0:02:49]} 11. O-O {[%clk 0:03:00]}  e5 {[%clk 0:02:49]} 12. Nc2 {[%clk 0:02:27]}  Ne6 {[%clk 0:02:47]} 13. Qd2 {[%clk 0:02:23]}  Qe7 {[%clk 0:02:41]} 14. Rfd1 {[%clk 0:02:19]}  Rd8 {[%clk 0:02:42]} 15. Nb4 {[%clk 0:02:18]}  Nd4 {[%clk 0:02:38]} 16. Bxd4 {[%clk 0:01:34]}  exd4 {[%clk 0:02:38]} 17. Qxd4 {[%clk 0:01:35]}  Be6 {[%clk 0:02:34]} 18. Qd2 {[%clk 0:01:31]}  Rac8 {[%clk 0:02:29]} 19. Nbd5 {[%clk 0:01:30]}  Bxd5 {[%clk 0:02:28]} 20. Nxd5 {[%clk 0:01:22]}  Nxd5 {[%clk 0:02:22]} 21. cxd5 {[%clk 0:01:23]}  Rc5 {[%clk 0:02:07]} 22. Rac1 {[%clk 0:01:21]}  Rdc8 {[%clk 0:02:08]} 23. Rxc5 {[%clk 0:01:13]}  Rxc5 {[%clk 0:02:09]} 24. Rc1 {[%clk 0:01:13]}  Qc7 {[%clk 0:02:07]} 25. Rxc5 {[%clk 0:01:04]}  Qxc5+ {[%clk 0:02:08]} 26. Kf1 {[%clk 0:00:59]}  b5 {[%clk 0:02:05]} 27. g3 {[%clk 0:00:57]}  h5 {[%clk 0:02:01]} 28. Kg2 {[%clk 0:00:56]}  Bd4 {[%clk 0:01:55]} 29. Bd3 {[%clk 0:00:38]}  Be3 {[%clk 0:01:53]} 30. Qc2 {[%clk 0:00:37]}  Qb4 {[%clk 0:01:41]} 31. Qc8+ {[%clk 0:00:29]}  Kg7 {[%clk 0:01:40]} 32. Qc3+ {[%clk 0:00:30]}  Qxc3 {[%clk 0:01:39]} 33. bxc3 {[%clk 0:00:31]}  Bc5 {[%clk 0:01:35]} 34. f4 {[%clk 0:00:29]}  Kf6 {[%clk 0:01:34]} 35. Kf3 {[%clk 0:00:28]}  g5 {[%clk 0:01:33]} 36. h3 {[%clk 0:00:26]}  h4 {[%clk 0:01:30]} 37. gxh4 {[%clk 0:00:12]}  gxf4 {[%clk 0:01:25]} 38. Kxf4 {[%clk 0:00:13]}  Ba3 {[%clk 0:01:24]} 39. h5 {[%clk 0:00:10]}  Bc1+ {[%clk 0:01:23]} 40. Kg4 {[%clk 0:00:10]}  Ke5 {[%clk 0:01:20]} 41. Bc2 {[%clk 0:00:10]}  Bd2 {[%clk 0:01:19]} 42. a4 {[%clk 0:00:07]}  bxa4 {[%clk 0:01:16]} 43. Bxa4 {[%clk 0:00:08]}  a5 {[%clk 0:01:14]} 44. Bc2 {[%clk 0:00:07]}  Kf6 {[%clk 0:01:08]} 45. c4 {[%clk 0:00:05]}  Ke5 {[%clk 0:01:00]} 46. Kf3 {[%clk 0:00:05]}  Kd4 {[%clk 0:00:59]} 47. Bb3 {[%clk 0:00:04]}  Kc3 {[%clk 0:00:55]} 48. Ba4 {[%clk 0:00:05]}  Kxc4 {[%clk 0:00:53]} 49. Be8 {[%clk 0:00:04]}  f6 {[%clk 0:00:52]} 50. Kg4 {[%clk 0:00:03]}  Kb4 {[%clk 0:00:49]} 51. Kf5 {[%clk 0:00:04]}  a4 {[%clk 0:00:50]} 52. Bxa4 {[%clk 0:00:01]}  Kxa4 {[%clk 0:00:50]} 53. Kxf6 {[%clk 0:00:02]}  Kb4 {[%clk 0:00:50]} 54. e5 {[%clk 0:00:02]}  Bc3 {[%clk 0:00:49]} 55. h6 {[%clk 0:00:01]}  Bxe5+ {[%clk 0:00:49]} 56. Ke6 {[%clk 0:00:02]}  Kc5 {[%clk 0:00:49]} 57. h4 {[%clk 0:00:02]}  Bc3 {[%clk 0:00:49]} 58. h7 {[%clk 0:00:02]}  Bb2 {[%clk 0:00:49]} 59. h5 {[%clk 0:00:03]}  Ba1 {[%clk 0:00:49]} 60. h6 {[%clk 0:00:04]}  Bb2 {[%clk 0:00:48]} 61. Kf7 {[%clk 0:00:05]}  Kxd5 {[%clk 0:00:48]} 62. Kg8 {[%clk 0:00:06]}  Ke6 {[%clk 0:00:35]} 63. h8=Q {[%clk 0:00:07]}  Bxh8 {[%clk 0:00:34]} 64. Kxh8 {[%clk 0:00:08]}  Kf7 {[%clk 0:00:23]} 65. h7 {[%clk 0:00:08]}  d5 {[%clk 0:00:18]} 1/2-1/2


[Site "https://www.chess.com"]

[Event "Titled Tuesday Blitz April 25 Late 2023"]
[White "Prohaszka, Peter"]
[Black "Harriott, Tyrell"]
[WhiteFideId "726265"]
[BlackFideId "2086484"]
[WhiteElo "2626"]
[BlackElo "2107"]
[Result "1/2-1/2"]
[Round "09"]
[TimeControl "180+2"]
[Date "2023.04.25"]
[WhiteClock "0:00:08"]
[BlackClock "0:00:05"]

1. d4 {[%clk 0:02:45]}  e6 {[%clk 0:02:59]} 2. c3 {[%clk 0:02:36]}  d5 {[%clk 0:02:59]} 3. Nf3 {[%clk 0:02:34]}  Bd6 {[%clk 0:03:00]} 4. Bg5 {[%clk 0:02:33]}  Ne7 {[%clk 0:02:59]} 5. Nbd2 {[%clk 0:02:33]}  f6 {[%clk 0:02:59]} 6. Bh4 {[%clk 0:02:32]}  Ng6 {[%clk 0:02:58]} 7. Bg3 {[%clk 0:02:32]}  O-O {[%clk 0:02:57]} 8. e4 {[%clk 0:02:32]}  c6 {[%clk 0:02:51]} 9. Bd3 {[%clk 0:02:27]}  f5 {[%clk 0:02:49]} 10. Bxd6 {[%clk 0:02:26]}  Qxd6 {[%clk 0:02:49]} 11. e5 {[%clk 0:02:21]}  Qe7 {[%clk 0:02:48]} 12. g3 {[%clk 0:02:17]}  c5 {[%clk 0:02:43]} 13. dxc5 {[%clk 0:02:15]}  Qxc5 {[%clk 0:02:42]} 14. Nb3 {[%clk 0:02:14]}  Qc7 {[%clk 0:02:39]} 15. O-O {[%clk 0:01:38]}  Nc6 {[%clk 0:02:32]} 16. Re1 {[%clk 0:01:35]}  Ncxe5 {[%clk 0:02:30]} 17. Nxe5 {[%clk 0:01:35]}  Nxe5 {[%clk 0:02:29]} 18. f4 {[%clk 0:01:32]}  Ng4 {[%clk 0:02:17]} 19. Nd4 {[%clk 0:01:31]}  Qb6 {[%clk 0:01:58]} 20. Qb3 {[%clk 0:01:28]}  Qc5 {[%clk 0:01:42]} 21. Qb4 {[%clk 0:01:21]}  Qxb4 {[%clk 0:01:41]} 22. cxb4 {[%clk 0:01:22]}  Kf7 {[%clk 0:01:34]} 23. Rac1 {[%clk 0:01:20]}  Re8 {[%clk 0:01:05]} 24. Rc7+ {[%clk 0:01:17]}  Kf8 {[%clk 0:00:58]} 25. Bb5 {[%clk 0:01:10]}  Re7 {[%clk 0:00:52]} 26. Rxe7 {[%clk 0:01:08]}  Kxe7 {[%clk 0:00:53]} 27. Nxf5+ {[%clk 0:01:08]}  Kf6 {[%clk 0:00:50]} 28. Nd4 {[%clk 0:00:58]}  h5 {[%clk 0:00:44]} 29. Be2 {[%clk 0:00:39]}  Bd7 {[%clk 0:00:36]} 30. h3 {[%clk 0:00:27]}  Ne3 {[%clk 0:00:31]} 31. Bxh5 {[%clk 0:00:23]}  Nc4 {[%clk 0:00:31]} 32. Re2 {[%clk 0:00:18]}  e5 {[%clk 0:00:26]} 33. fxe5+ {[%clk 0:00:18]}  Nxe5 {[%clk 0:00:25]} 34. g4 {[%clk 0:00:11]}  g5 {[%clk 0:00:17]} 35. h4 {[%clk 0:00:11]}  Nxg4 {[%clk 0:00:15]} 36. Bxg4 {[%clk 0:00:09]}  Bxg4 {[%clk 0:00:16]} 37. hxg5+ {[%clk 0:00:09]}  Kxg5 {[%clk 0:00:16]} 38. Re5+ {[%clk 0:00:09]}  Kf4 {[%clk 0:00:16]} 39. Rxd5 {[%clk 0:00:09]}  Ke4 {[%clk 0:00:13]} 40. Rd6 {[%clk 0:00:09]}  Rc8 {[%clk 0:00:10]} 41. Kf2 {[%clk 0:00:09]}  Rc1 {[%clk 0:00:09]} 42. Rg6 {[%clk 0:00:08]}  Bd1 {[%clk 0:00:07]} 43. Nb3 {[%clk 0:00:07]}  Bxb3 {[%clk 0:00:07]} 44. axb3 {[%clk 0:00:06]}  Rc2+ {[%clk 0:00:08]} 45. Ke1 {[%clk 0:00:05]}  Rxb2 {[%clk 0:00:08]} 46. Rg7 {[%clk 0:00:05]}  Rxb3 {[%clk 0:00:08]} 47. Rxb7 {[%clk 0:00:05]}  a5 {[%clk 0:00:07]} 48. b5 {[%clk 0:00:05]}  a4 {[%clk 0:00:08]} 49. Ra7 {[%clk 0:00:05]}  Rxb5 {[%clk 0:00:05]} 50. Rxa4+ {[%clk 0:00:04]}  Kd5 {[%clk 0:00:06]} 51. Ra3 {[%clk 0:00:05]}  Kc5 {[%clk 0:00:06]} 52. Kd2 {[%clk 0:00:05]}  Rb4 {[%clk 0:00:06]} 53. Kc3 {[%clk 0:00:05]}  Rg4 {[%clk 0:00:06]} 54. Ra5+ {[%clk 0:00:05]}  Kb6 {[%clk 0:00:06]} 55. Rf5 {[%clk 0:00:05]}  Rh4 {[%clk 0:00:06]} 56. Kd3 {[%clk 0:00:06]}  Rg4 {[%clk 0:00:06]} 57. Ke3 {[%clk 0:00:06]}  Ra4 {[%clk 0:00:06]} 58. Kf3 {[%clk 0:00:07]}  Rb4 {[%clk 0:00:07]} 59. Rf4 {[%clk 0:00:07]}  Rxf4+ {[%clk 0:00:05]} 60. Kxf4 {[%clk 0:00:08]} 1/2-1/2


[Site "https://www.chess.com"]

[Event "Titled Tuesday Blitz April 25 Late 2023"]
[White "Tymrakiewicz, Rafal"]
[Black "Demchenko, Anton"]
[WhiteFideId "1108832"]
[BlackFideId "4160258"]
[WhiteElo "2151"]
[BlackElo "2545"]
[Result "0-1"]
[Round "09"]
[TimeControl "180+2"]
[Date "2023.04.25"]
[WhiteClock "0:00:03"]
[BlackClock "0:00:07"]

1. e4 {[%clk 0:02:54]}  e5 {[%clk 0:02:59]} 2. Nf3 {[%clk 0:02:53]}  Nc6 {[%clk 0:02:59]} 3. Bb5 {[%clk 0:02:53]}  a6 {[%clk 0:02:59]} 4. Bxc6 {[%clk 0:02:54]}  dxc6 {[%clk 0:02:59]} 5. Nc3 {[%clk 0:02:55]}  f6 {[%clk 0:02:56]} 6. d4 {[%clk 0:02:55]}  exd4 {[%clk 0:02:56]} 7. Qxd4 {[%clk 0:02:56]}  Qxd4 {[%clk 0:02:56]} 8. Nxd4 {[%clk 0:02:57]}  Bd7 {[%clk 0:02:56]} 9. Be3 {[%clk 0:02:54]}  O-O-O {[%clk 0:02:57]} 10. h4 {[%clk 0:02:50]}  h5 {[%clk 0:02:55]} 11. Rd1 {[%clk 0:02:39]}  Bb4 {[%clk 0:02:54]} 12. Ne2 {[%clk 0:02:38]}  Ne7 {[%clk 0:02:35]} 13. a3 {[%clk 0:02:37]}  Bd6 {[%clk 0:02:35]} 14. f4 {[%clk 0:02:10]}  Bg4 {[%clk 0:02:24]} 15. Kf2 {[%clk 0:01:59]}  Rhf8 {[%clk 0:02:17]} 16. Rd2 {[%clk 0:01:55]}  Kb8 {[%clk 0:01:48]} 17. Nd4 {[%clk 0:01:48]}  c5 {[%clk 0:01:18]} 18. Nde2 {[%clk 0:01:36]}  Nc8 {[%clk 0:01:08]} 19. Nd5 {[%clk 0:01:24]}  Rfe8 {[%clk 0:00:48]} 20. Ng3 {[%clk 0:01:16]}  Bf8 {[%clk 0:00:43]} 21. b3 {[%clk 0:00:56]}  b6 {[%clk 0:00:41]} 22. f5 {[%clk 0:00:53]}  Bd6 {[%clk 0:00:37]} 23. Nf4 {[%clk 0:00:45]}  Bxf4 {[%clk 0:00:29]} 24. Bxf4 {[%clk 0:00:45]}  Rxd2+ {[%clk 0:00:30]} 25. Bxd2 {[%clk 0:00:45]}  Nd6 {[%clk 0:00:30]} 26. Re1 {[%clk 0:00:43]}  c4 {[%clk 0:00:31]} 27. Bf4 {[%clk 0:00:42]}  cxb3 {[%clk 0:00:23]} 28. cxb3 {[%clk 0:00:43]}  Nb5 {[%clk 0:00:21]} 29. e5 {[%clk 0:00:25]}  fxe5 {[%clk 0:00:18]} 30. Rxe5 {[%clk 0:00:25]}  Rf8 {[%clk 0:00:16]} 31. Re7 {[%clk 0:00:18]}  Bxf5 {[%clk 0:00:14]} 32. a4 {[%clk 0:00:19]}  Nd6 {[%clk 0:00:14]} 33. Bxd6 {[%clk 0:00:16]}  cxd6 {[%clk 0:00:13]} 34. Rxg7 {[%clk 0:00:11]}  Be6+ {[%clk 0:00:11]} 35. Ke3 {[%clk 0:00:11]}  Bxb3 {[%clk 0:00:12]} 36. Nxh5 {[%clk 0:00:11]}  Bxa4 {[%clk 0:00:11]} 37. Nf6 {[%clk 0:00:11]}  Rxf6 {[%clk 0:00:10]} 38. g4 {[%clk 0:00:11]}  Bc2 {[%clk 0:00:10]} 39. g5 {[%clk 0:00:11]}  Rf1 {[%clk 0:00:10]} 40. h5 {[%clk 0:00:10]}  Rh1 {[%clk 0:00:09]} 41. h6 {[%clk 0:00:10]}  a5 {[%clk 0:00:09]} 42. Kd2 {[%clk 0:00:09]}  Be4 {[%clk 0:00:09]} 43. Ke3 {[%clk 0:00:09]}  d5 {[%clk 0:00:09]} 44. Kd4 {[%clk 0:00:10]}  a4 {[%clk 0:00:09]} 45. Kc3 {[%clk 0:00:09]}  a3 {[%clk 0:00:08]} 46. Kb3 {[%clk 0:00:10]}  Rh3+ {[%clk 0:00:08]} 47. Ka2 {[%clk 0:00:10]}  b5 {[%clk 0:00:09]} 48. Re7 {[%clk 0:00:04]}  b4 {[%clk 0:00:05]} 49. Rxe4 {[%clk 0:00:04]}  dxe4 {[%clk 0:00:06]} 50. g6 {[%clk 0:00:02]}  Rxh6 {[%clk 0:00:06]} 51. g7 {[%clk 0:00:03]}  Rg6 {[%clk 0:00:07]} 52. Kb3 {[%clk 0:00:03]}  Rxg7 {[%clk 0:00:07]} 0-1


[Site "https://www.chess.com"]

[Event "Titled Tuesday Blitz April 25 Late 2023"]
[White "Bitoon, Richard"]
[Black "Karas, Marek"]
[WhiteFideId "5201110"]
[BlackFideId "14928558"]
[WhiteElo "2374"]
[BlackElo "2233"]
[Result "1/2-1/2"]
[Round "09"]
[TimeControl "180+2"]
[Date "2023.04.25"]
[WhiteClock "0:00:03"]
[BlackClock "0:00:42"]

1. e4 {[%clk 0:02:36]}  e6 {[%clk 0:03:00]} 2. d4 {[%clk 0:02:35]}  d5 {[%clk 0:03:01]} 3. Nd2 {[%clk 0:02:36]}  a6 {[%clk 0:03:01]} 4. Bd3 {[%clk 0:02:36]}  c5 {[%clk 0:03:01]} 5. dxc5 {[%clk 0:02:36]}  Bxc5 {[%clk 0:03:01]} 6. exd5 {[%clk 0:02:37]}  exd5 {[%clk 0:02:59]} 7. Ngf3 {[%clk 0:02:38]}  Qe7+ {[%clk 0:02:57]} 8. Be2 {[%clk 0:02:38]}  Nf6 {[%clk 0:02:56]} 9. O-O {[%clk 0:02:39]}  O-O {[%clk 0:02:56]} 10. Nb3 {[%clk 0:02:39]}  Bb6 {[%clk 0:02:56]} 11. Bg5 {[%clk 0:02:39]}  h6 {[%clk 0:02:50]} 12. Bxf6 {[%clk 0:02:39]}  Qxf6 {[%clk 0:02:51]} 13. c3 {[%clk 0:02:30]}  Be6 {[%clk 0:02:48]} 14. Nfd4 {[%clk 0:02:29]}  Nc6 {[%clk 0:02:45]} 15. Bf3 {[%clk 0:02:19]}  Nxd4 {[%clk 0:02:43]} 16. Nxd4 {[%clk 0:02:19]}  Bxd4 {[%clk 0:02:42]} 17. Qxd4 {[%clk 0:02:19]}  Qxd4 {[%clk 0:02:42]} 18. cxd4 {[%clk 0:02:20]}  Rac8 {[%clk 0:02:42]} 19. Rac1 {[%clk 0:02:20]}  Rfd8 {[%clk 0:02:39]} 20. Rfe1 {[%clk 0:02:12]}  Kf8 {[%clk 0:02:37]} 21. Kf1 {[%clk 0:02:13]}  b6 {[%clk 0:02:26]} 22. Rc3 {[%clk 0:02:02]}  Rxc3 {[%clk 0:02:25]} 23. bxc3 {[%clk 0:02:03]}  Rc8 {[%clk 0:02:25]} 24. Rc1 {[%clk 0:02:00]}  Ke7 {[%clk 0:02:24]} 25. Ke2 {[%clk 0:02:00]}  Kd6 {[%clk 0:02:20]} 26. Kd2 {[%clk 0:02:01]}  b5 {[%clk 0:02:17]} 27. a3 {[%clk 0:02:00]}  Bf5 {[%clk 0:02:10]} 28. Re1 {[%clk 0:02:00]}  Be6 {[%clk 0:02:09]} 29. Kc2 {[%clk 0:02:00]}  Bf5+ {[%clk 0:02:02]} 30. Kb2 {[%clk 0:01:58]}  Be4 {[%clk 0:01:49]} 31. Be2 {[%clk 0:01:43]}  Bxg2 {[%clk 0:01:43]} 32. Rg1 {[%clk 0:01:43]}  Be4 {[%clk 0:01:44]} 33. a4 {[%clk 0:01:40]}  bxa4 {[%clk 0:01:39]} 34. Bxa6 {[%clk 0:01:40]}  Rb8+ {[%clk 0:01:39]} 35. Ka3 {[%clk 0:01:32]}  Rb3+ {[%clk 0:01:38]} 36. Kxa4 {[%clk 0:01:32]}  Rxc3 {[%clk 0:01:39]} 37. Rxg7 {[%clk 0:01:32]}  Bg6 {[%clk 0:01:32]} 38. Rg8 {[%clk 0:01:23]}  Rc2 {[%clk 0:01:29]} 39. Rd8+ {[%clk 0:01:21]}  Ke7 {[%clk 0:01:28]} 40. Ra8 {[%clk 0:01:16]}  Rxf2 {[%clk 0:01:21]} 41. Kb4 {[%clk 0:01:06]}  Rxh2 {[%clk 0:01:17]} 42. Kc5 {[%clk 0:01:02]}  Ra2 {[%clk 0:01:10]} 43. Kxd5 {[%clk 0:00:59]}  h5 {[%clk 0:01:06]} 44. Ke5 {[%clk 0:00:55]}  h4 {[%clk 0:01:01]} 45. Ra7+ {[%clk 0:00:54]}  Kf8 {[%clk 0:01:01]} 46. Kf6 {[%clk 0:00:53]}  Kg8 {[%clk 0:00:55]} 47. Ra8+ {[%clk 0:00:47]}  Kh7 {[%clk 0:00:55]} 48. Bb7 {[%clk 0:00:48]}  Rxa8 {[%clk 0:00:50]} 49. Bxa8 {[%clk 0:00:49]}  h3 {[%clk 0:00:48]} 50. Bf3 {[%clk 0:00:31]}  Kg8 {[%clk 0:00:38]} 51. Kg5 {[%clk 0:00:23]}  Bd3 {[%clk 0:00:36]} 52. Kg4 {[%clk 0:00:19]}  Bf1 {[%clk 0:00:35]} 53. Kg3 {[%clk 0:00:19]}  Kf8 {[%clk 0:00:34]} 54. Bg4 {[%clk 0:00:19]}  Ke7 {[%clk 0:00:34]} 55. Bxh3 {[%clk 0:00:20]}  Bxh3 {[%clk 0:00:34]} 56. Kxh3 {[%clk 0:00:20]}  Kd6 {[%clk 0:00:35]} 57. Kg4 {[%clk 0:00:21]}  Kd5 {[%clk 0:00:36]} 58. Kf5 {[%clk 0:00:22]}  Kxd4 {[%clk 0:00:37]} 59. Kf6 {[%clk 0:00:22]}  Kd3 {[%clk 0:00:37]} 60. Kf5 {[%clk 0:00:22]}  f6 {[%clk 0:00:37]} 61. Kf4 {[%clk 0:00:21]}  f5 {[%clk 0:00:37]} 62. Kf3 {[%clk 0:00:21]}  f4 {[%clk 0:00:37]} 63. Kf2 {[%clk 0:00:11]}  Ke4 {[%clk 0:00:37]} 64. Ke2 {[%clk 0:00:12]}  f3+ {[%clk 0:00:36]} 65. Kf2 {[%clk 0:00:12]}  Kf4 {[%clk 0:00:37]} 66. Kf1 {[%clk 0:00:13]}  Kg3 {[%clk 0:00:38]} 67. Kg1 {[%clk 0:00:13]}  Kf4 {[%clk 0:00:38]} 68. Kf2 {[%clk 0:00:14]}  Kg4 {[%clk 0:00:39]} 69. Kf1 {[%clk 0:00:14]}  Kf5 {[%clk 0:00:39]} 70. Kf2 {[%clk 0:00:14]}  Ke4 {[%clk 0:00:40]} 71. Kf1 {[%clk 0:00:15]}  Ke3 {[%clk 0:00:40]} 72. Ke1 {[%clk 0:00:15]}  f2+ {[%clk 0:00:41]} 73. Kf1 {[%clk 0:00:03]}  Kf3 {[%clk 0:00:42]} 1/2-1/2


[Site "https://www.chess.com"]